{"text_format":"3","workbook":"xlsx","n_sheets":4,"sheets":["Ground floor renovations","Office renovations","Office renovations (2)","Measurements"],"read":"whole","date_system":"1900"}

{"sheet":"Ground floor renovations","index":0,"n_rows":196,"n_cols":11,"rows_kept":196,"hidden":true,"merged":[[1,0,1,7]]}
[]
["A.S. CHETTY - THIRD FLOORGROUND FLOOR REFURBISHMENT"]
["ITEM NO",null,"DESCRIPTION",null,"UNIT","QUANTITY","RATE","AMOUNT"]
[]
[null,null,"BILL NO. 1"]
[]
[null,null,"Preliminaries and General"]
[]
[null,null,"The P&G's are priced excluding Vat but are inclusive of all items and expressed as a percentage amount of the Project Value in the appropriate category as indicated below. A percentage as per categories below must be added to the Project Amount to  (9.5%)",null,"Item",1,{"$f":"K186","v":{"v":54508.5,"d":"54,508.50"}},{"$f":"G9*F9","v":{"v":54508.5,"d":"54,508.50"}}]
[]
[null,null,"Carried to summary",{"$nulls":4},{"$f":"SUM(H9:H10)","v":{"v":54508.5,"d":"54,508.50"}}]
[]
[null,null,"BILL NO. 2"]
[]
[null,null,"ALTERATIONS"]
[]
[null,null,"PREAMBLES"]
[]
[null,null,"REMOVAL OF EXISTING WORK"]
[]
[null,null,"Taking up and removing vinyl floor coverings, carpeting, etc"]
[]
[null,null,"Ceramic tile on  floors including preparing screed for new flooring",null,"m²",{"v":25,"d":"25 "},{"v":34,"d":"34.00"},{"$f":"G23*F23","v":{"v":850,"d":"850.00"}}]
[]
[null,null,"Carpet tile floor covering including preparing screed for new flooring",null,"m²",{"v":240,"d":"240 "},{"v":34,"d":"34.00"},{"$f":"F25*G25","v":{"v":8160,"d":"8,160.00"}}]
[null,null," "]
[null,null,"Taking out and removing joinery fittings etc"]
[]
[null,null,"Timber wall cupboard exceeding 1000 x 450 x 900mm high",null,"No",{"v":2,"d":"2 "},{"v":226,"d":"226.00"},{"$f":"F29*G29","v":{"v":452,"d":"452.00"}}]
[]
[null,null,"Taking out and removing piping, sanitary fittings, etc including disconnecting piping from fittings and making good floor and wall finishes (making good tiling and paintwork elsewhere)"]
[]
[null,null,"Vitreous china wash hand basin",null,"No",{"v":5,"d":"5 "},{"v":338,"d":"338.00"},{"$f":"F33*G33","v":{"v":1690,"d":"1,690.00"}}]
[]
[null,null,"Vitreous china WC pan with cistern",null,"No",{"v":6,"d":"6 "},{"v":338,"d":"338.00"},{"$f":"F35*G35","v":{"v":2028,"d":"2,028.00"}}]
[]
[null,null,"Carried to summary",{"$nulls":4},{"$f":"SUM(H21:H36)","v":{"v":13180,"d":"13,180.00"}}]
[]
[null,null,"BILL NO. 3"]
[]
[null,null,"CARPENTRY AND JOINERY"]
[]
[null,null,"EXISTING WORK"]
[]
[null,null,"Supplying and Installing New Cash Register Drawers"]
[]
[null,null,"Remove and dispose existing cash register drawers; supply, deliver, and install new cash register drawers complete with runners, locks, and all necessary ironmongery; securely fixed in position, levelled, and tested for smooth operation",null,"No",{"v":8,"d":"8 "},{"v":2300,"d":"2,300.00"},{"$f":"G47*F47","v":{"v":18400,"d":"18,400.00"}}]
[]
[null,null,"FITTINGS"]
[]
[null,null,"Built-in cupboards"]
[]
[null,null,"Kitchen cupboards, plugged"]
[]
[null,null,"Floor unit 1 500 x 800 x 900mm high (granite top elsewhere)",null,"No",{"v":2,"d":"2 "},{"v":3500,"d":"3,500.00"},{"$f":"F55*G55","v":{"v":7000,"d":"7,000.00"}}]
[]
[]
[null,null,"Carried to summary",{"$nulls":4},{"$f":"SUM(H47:H56)","v":{"v":25400,"d":"25,400.00"}}]
[]
[null,null,"BILL NO. 4"]
[]
[null,null,"FLOOR COVERINGS, WALL LININGS, ETC"]
[]
[null,null,"VINYL FLOORING"]
[]
[null,null,"Supply and install Luxury Vinyl Tile (0.5 mm wear layer), laid on a prepared surface. Apply primer to the subfloor, install 5 mm TAL Screedmaster self-levelling compound, allow to cure, and fit tiles using the manufacturer’s recommended adhesive. Finish with matching quadrant skirtings for a neat edge detail."]
[]
[null,null,"On floors",null,"m²",{"v":370,"d":"370 "},{"v":750,"d":"750.00"},{"$f":"G68*F68","v":{"v":277500,"d":"277,500.00"}}]
[]
[null,null,"Carried to summary",{"$nulls":4},{"$f":"SUM(H68:H69)","v":{"v":277500,"d":"277,500.00"}}]
[]
[null,null,"BILL NO. 10"]
[]
[null,null,"CEILINGS, PARTITIONS AND ACCESS FLOORING"]
[]
[null,null,"DRYWALL PARTITIONING"]
[]
[null,null,"Rhino-Drywall partition systems or equal similar Architect approved"]
[]
[null,null,"Partitioning woth bottom and top tracks plugged",null,"m²",{"v":40,"d":"40 "},{"v":652,"d":"652.00"},{"$f":"F80*G80","v":{"v":26080,"d":"26,080.00"}}]
[]
[null,null,"Extra over drywall partition for :"]
[]
[null,null,"44mm Hollow core timber door size 813 x 2032mm high including steel frame.",null,"No",{"v":1,"d":"1 "},{"v":950,"d":"950.00"},{"$f":"G84*F84","v":{"v":950,"d":"950.00"}}]
[]
[null,null,"Carried to summary",{"$nulls":4},{"$f":"SUM(H80:H84)","v":{"v":27030,"d":"27,030.00"}}]
[]
[null,null,"BILL NO. 16"]
[]
[null,null,"TILING"]
[]
[null,null,"PREAMBLES"]
[]
[null,null,"WALL TILING"]
[]
[null,null,"Allow the prime cost amount of R200/m2 for ceramic wall tiles, with 6mm straight joints fixed with approved tile adhesive and grout, all to Manufacturer's recommendations:"]
[]
[null,null,"On smooth plastered walls. (250mm x 400mm ceramic wall tiles as per specification)",null,"m2",{"v":95,"d":"95 "},{"v":352,"d":"352.00"},{"$f":"F98*G98","v":{"v":33440,"d":"33,440.00"}}]
[]
[null,null,"Allow the prime cost amount of R250/m2 for porcelain wall tiles, with 6mm straight joints fixed with approved tile adhesive and grout, all to Manufacturer's recommendations:"]
[]
[null,null,"On smooth plastered walls. (Porcelain subway tile installed in herringbone pattern, as per specification)",null,"m2",{"v":25,"d":"25 "},{"v":407,"d":"407.00"},{"$f":"F102*G102","v":{"v":10175,"d":"10,175.00"}}]
[]
[null,null,"FLOOR TILING"]
[]
[null,null,"Allow the prime cost amount of R250.00/m2 for ceramic floor tiles \"TAL\"or other equal Architect approved with a m.o.h.s. of at least 7 on screed with a minimum 3 mm joints using quick setting high strength gray powder adhesive. Surfaces to be tiled are to be primed before tiling using a cement slurry mixedusing liquid latex:"]
[]
[null,null,"On floors",null,"m2",{"v":30,"d":"30 "},{"v":407,"d":"407.00"},{"$f":"F108*G108","v":{"v":12210,"d":"12,210.00"}}]
[]
[null,null,"CORNER PROTECTORS, DIVIDING STRIPS, ETC"]
[]
[null,null,"25 x 10mm high polished stainless steel wall corner protector , bedded in tile adhesive while tiles are laid.",null,"m",{"v":25,"d":"25 "},{"v":250,"d":"250.00"},{"$f":"G112*F112","v":{"v":6250,"d":"6,250.00"}}]
[]
[null,null,"25 x 3mm Brass Dividing strips Straight edge trim",null,"m",{"v":50,"d":"50 "},{"v":155,"d":"155.00"},{"$f":"F114*G114","v":{"v":7750,"d":"7,750.00"}}]
[]
[null,null,"Carried to summary",{"$nulls":4},{"$f":"SUM(H98:H114)","v":{"v":69825,"d":"69,825.00"}}]
[]
[null,null,"BILL NO. 17"]
[]
[null,null,"PLUMBING AND DRAINAGE (PROVISIONAL)"]
[]
[null,null,"PREAMBLES"]
[]
[null,null,"SANITARY FITTINGS"]
[]
[null,null,"Vaal Sanitaryware or equal similar Architect approved"]
[]
[null,null,"Vitreous china \"Parktown\" 90° outlet top inlet (code 431500) closed rim back-to-wall pan to be used with an exposed flushvalve Flush volume 6/3 litres, subject to the pan being installed with a cistern providing an effective 6/3 litre flush volume. Accessories to include Flushmaster FJ2.000, with pan connector C-FM8.20 and offset flushpipe FJT5.7, DPI Flushfit, Marley SG47 pan collar or equivalent. Jazz thermoset toilet seat (code 8531Z0) and Wall fixing screws (code 8513Z0) all in strict accordance to manufacturer's instructions",null,"No",{"v":6,"d":"6 "},{"v":5200,"d":"5,200.00"},{"$f":"F128*G128","v":{"v":31200,"d":"31,200.00"}}]
[]
[null,null,"Granite Worktops"]
[]
[null,null,"30mm thick granite colour Brazillian Coffee with 20mm all exposed edges large large bevel, fixed to supports (elsewhere specified) using dabs of 100% clear silicone adhesive at 200mm to 300mm centres along all supports with all joints filled with matching polyester resin glue. Surface to be sealed using an approved stone sealer, all in accordance with the manufacturer`s recommendations.",null,"m²",{"v":8,"d":"8 "},{"v":2500,"d":"2,500.00"},{"$f":"F132*G132","v":{"v":20000,"d":"20,000.00"}}]
[]
[null,null,"'Franke (t/a Citimetal)' grade 304 (18/10) or equal Architect approved stainless steel catering ware:"]
[]
[null,null,"Franke Nouveau Kitchen Sink, fitted onto cupboard (elsewhere specified) including PVC trap (trap elsewhere specified) with 38mm waste fitting  - 800 x 460mm",null,"No",{"v":1,"d":"1 "},{"v":3000,"d":"3,000.00"},{"$f":"G136*F136","v":{"v":3000,"d":"3,000.00"}}]
[]
[null,null,"Vitreous china or equal Architect approved:"]
[]
[null,null,"Supply & install fibreglass wash hand basin including all fittings (Vessel Basin)",null,"No",{"v":5,"d":"5 "},{"v":3200,"d":"3,200.00"},{"$f":"F140*G140","v":{"v":16000,"d":"16,000.00"}}]
[]
[null,null,"ELECTRIC WATER HEATERS"]
[]
[null,null,"Franke - Zip Stainless Steel 7.5 litre Hydroboil pro, (code: 380101) 45 -50 cups or equal approved complete with hydroboil sink overflow spout (code : 029229) or equal Architect approved",null,"No",{"v":1,"d":"1 "},{"v":13500,"d":"13,500.00"},{"$f":"F144*G144","v":{"v":13500,"d":"13,500.00"}}]
[]
[null,null,"Carried to summary",{"$nulls":4},{"$f":"SUM(H128:H145)","v":{"v":83700,"d":"83,700.00"}}]
[]
[null,null,"BILL NO. 18"]
[]
[null,null,"GLAZING"]
[]
[null,null,"TOPS, SHELVES, DOORS, MIRRORS, ETC."]
[]
[null,null,"6mm Silvered float glass copper backed mirrors with polished edges holed for and fixed with chromium plated dome capped mirror screws with rubber buffers to plugs in brickwork or concrete:"]
[]
[null,null,"Mirror 450 x 1000mm high with four screws.",null,"No",{"v":8,"d":"8 "},{"v":900,"d":"900.00"},{"$f":"F156*G156","v":{"v":7200,"d":"7,200.00"}}]
[]
[null,null,"Carried to summary",{"$nulls":4},{"$f":"SUM(H156)","v":{"v":7200,"d":"7,200.00"}}]
[]
[null,null,"BILL NO. 19"]
[]
[null,null,"PAINTWORK"]
[]
[null,null,"PAINTWORK TO PREVIOUSLY PAINTED WORK"]
[]
[null,null,"WALLS"]
[]
[null,null,"Thoroughly clean down and remove all grease, dirt and blemishes of all kinds, blisters, scaling, surface cracks and similar defects and leave the surfaces in a thoroughly clean, smooth and stable condition, ready for painting. Cracks, crevices, nail holes, etc shall be stopped with hard stopping. Old stoppings which have become loose shall be removed and the holes restopped.The final state of preparatory work shall be that which shall in all cases produce in the finished painted surface a condition similar to new work"]
[]
[null,null,"Clean down and prepare existing surfaces and apply:"]
[]
[null,null,"Two coats PVA acrylic emulsion paint internally to emulsion painted plastered walls",null,"m²",{"v":500,"d":"500 "},{"v":75,"d":"75.00"},{"$f":"F172*G172","v":{"v":37500,"d":"37,500.00"}}]
[]
[null,null,"ON WOOD",{"$nulls":4}," "]
[]
[null,null,"Prepare, brush surface to remove all loose contaminants, stain and apply one coat \"Plascon Woodcare Pretreatment (WWP 1)\" or equal approved , and three coats \"Woodcare Wood Preservative (FPR1)\" or equal approved preservative strictly in accordance with the Manufacturer's instructions"]
[]
[null,null,"On doors and frames ",null,"m²",{"v":50,"d":"50 "},{"v":75,"d":"75.00"},{"$f":"F178*G178","v":{"v":3750,"d":"3,750.00"}}]
[]
[null,null,"Carried to summary",{"$nulls":4},{"$f":"SUM(H170:H178)","v":{"v":41250,"d":"41,250.00"}}]
[]
[null,null,"SUMMARY OF SCHEDULES"]
[{"v":1,"d":"1 "},null,"PRELIMINARY AND GENERAL",null,"BILL No.",{"v":1,"d":"1 "},null,{"$f":"H11","v":{"v":54508.5,"d":"54,508.50"}}]
[{"v":2,"d":"2 "},null,"ALTERATIONS",null,"BILL No.",{"v":2,"d":"2 "},null,{"$f":"H37","v":{"v":13180,"d":"13,180.00"}}]
[{"v":3,"d":"3 "},null,"CARPENTRY AND JOINERY",null,"BILL No.",{"v":3,"d":"3 "},null,{"$f":"H58","v":{"v":25400,"d":"25,400.00"}}]
[{"v":4,"d":"4 "},null,"FLOOR COVERINGS, WALL LININGS, ETC",null,"BILL No.",{"v":4,"d":"4 "},null,{"$f":"H70","v":{"v":277500,"d":"277,500.00"}},null,null,{"$f":"(H184+H185+H186+H187+H188+H189+H190+H191)*0.1","v":54508.5}]
[{"v":5,"d":"5 "},null,"CEILINGS, PARTITIONS AND ACCESS FLOORING",null,"BILL No.",{"v":5,"d":"5 "},null,{"$f":"H86","v":{"v":27030,"d":"27,030.00"}}]
[{"v":6,"d":"6 "},null,"TILING",null,"BILL No.",{"v":6,"d":"6 "},null,{"$f":"H116","v":{"v":69825,"d":"69,825.00"}}]
[{"v":7,"d":"7 "},null,"PLUMBING AND DRAINAGE",null,"BILL No.",{"v":7,"d":"7 "},null,{"$f":"H146","v":{"v":83700,"d":"83,700.00"}}]
[{"v":8,"d":"8 "},null,"GLAZING",null,"BILL No.",{"v":8,"d":"8 "},null,{"$f":"H158","v":{"v":7200,"d":"7,200.00"}}]
[{"v":9,"d":"9 "},null,"PAINTWORK",null,"BILL No.",{"v":9,"d":"9 "},null,{"$f":"H180","v":{"v":41250,"d":"41,250.00"}}]
[null,null,"SUB - TOTAL",{"$nulls":4},{"$f":"SUM(H183:H191)","v":{"v":599593.5,"d":"599,593.50"}}]
[]
[null,null,"ADD VAT @ 15%",null,"VAT",{"v":0.15,"d":"15%"},null,{"$f":"H192*15%","v":{"v":89939.025,"d":"89,939.03"}}]
[]
[null,null,"CARRIED TO FORM OF TENDER",{"$nulls":4},{"$f":"SUM(H192:H194)","v":{"v":689532.525,"d":"689,532.53"}}]

{"sheet":"Office renovations","index":1,"n_rows":71,"n_cols":8,"rows_kept":71,"hidden":true,"merged":[[1,0,1,7]]}
[]
["A.S. CHETTY - 3RD FLOOR RECEPTION AREA AND FRONT DOORS"]
["ITEM NO",null,"DESCRIPTION",null,"UNIT","QUANTITY","RATE","AMOUNT"]
[]
[null,null,"BILL NO. 1"]
[]
[null,null,"Preliminaries and General"]
[]
[null,null,"The P&G's are priced excluding Vat but are inclusive of all items and expressed as a percentage amount of the Project Value in the appropriate category as indicated below. A percentage as per categories below must be added to the Project Amount to  (9.5%)",null,"Item",1,{"v":4434.98,"d":"4,434.98"},{"$f":"G9","v":{"v":4434.98,"d":"4,434.98"}}]
[]
[null,null,"Carried to summary",{"$nulls":4},{"$f":"SUM(H9:H10)","v":{"v":4434.98,"d":"4,434.98"}}]
[]
[null,null,"BILL NO. 2"]
[]
[null,null,"ALTERATIONS"]
[]
[null,null,"PREAMBLES"]
[]
[null,null,"REMOVAL OF EXISTING WORK"]
[]
[null,null,"Taking up and removing vinyl floor coverings, carpeting, etc"]
[]
[null,null,"Laminated floor covering including preparing screed for new carpeting",null,"m²",{"v":25,"d":"25 "},{"v":40,"d":"40.00"},{"$f":"F23*G23","v":{"v":1000,"d":"1,000.00"}}]
[]
[null,null,"Taking up and removing vinyl floor coverings, carpeting, etc"]
[]
[null,null,"Carpet tile floor covering including preparing screed for new carpeting",null,"m²",{"v":45,"d":"45 "},{"v":35,"d":"35.00"},{"$f":"F27*G27","v":{"v":1575,"d":"1,575.00"}}]
[]
[null,null,"Carried to summary",{"$nulls":4},{"$f":"SUM(H23:H27)","v":{"v":2575,"d":"2,575.00"}}]
[null,null,"BILL NO. 16"]
[]
[null,null,"TILING"]
[]
[]
[null,null,"FLOOR TILING"]
[]
[null,null,"Allow the prime cost amount of R250.00/m2 for ceramic floor tiles \"TAL\"or other equal Architect approved with a m.o.h.s. of at least 7 on screed with a minimum 3 mm joints using quick setting high strength gray powder adhesive. Surfaces to be tiled are to be primed before tiling using a cement slurry mixedusing liquid latex:"]
[]
[null,null,"On floors",null,"m²",{"v":70,"d":"70 "},{"v":407,"d":"407.00"},{"$f":"F39*G39","v":{"v":28490,"d":"28,490.00"}}]
[]
[null,null,"Carried to summary",{"$nulls":4},{"$f":"SUM(H34:H40)","v":{"v":28490,"d":"28,490.00"}}]
[]
[]
[]
[null,null,"BILL NO. 19"]
[]
[null,null,"PAINTWORK"]
[]
[null,null,"PAINTWORK TO PREVIOUSLY PAINTED WORK"]
[]
[null,null,"WALLS"]
[]
[null,null,"Thoroughly clean down and remove all grease, dirt and blemishes of all kinds, blisters, scaling, surface cracks and similar defects and leave the surfaces in a thoroughly clean, smooth and stable condition, ready for painting. Cracks, crevices, nail holes, etc shall be stopped with hard stopping. Old stoppings which have become loose shall be removed and the holes restopped.The final state of preparatory work shall be that which shall in all cases produce in the finished painted surface a condition similar to new work"]
[]
[null,null,"Clean down and prepare existing surfaces and apply:"]
[]
[null,null,"Two coats PVA acrylic emulsion paint internally to emulsion painted plastered walls",null,"m²",{"v":100,"d":"100 "},{"v":75,"d":"75.00"},{"$f":"F57*G57","v":{"v":7500,"d":"7,500.00"}}]
[]
[]
[null,null,"Carried to summary",{"$nulls":4},{"$f":"SUM(H55:H58)","v":{"v":7500,"d":"7,500.00"}}]
[]
[null,null,"SUMMARY OF SCHEDULES"]
[{"v":1,"d":"1 "},null,"PRELIMINARY AND GENERAL",null,"BILL No.",{"v":1,"d":"1 "},null,{"$f":"H11","v":{"v":4434.98,"d":"4,434.98"}}]
[{"v":2,"d":"2 "},null,"ALTERATIONS",null,"BILL No.",{"v":2,"d":"2 "},null,{"$f":"H29","v":{"v":2575,"d":"2,575.00"}}]
[{"v":5,"d":"5 "},null,"TILING",null,"BILL No.",{"v":16,"d":"16 "},null,{"$f":"H41","v":{"v":28490,"d":"28,490.00"}}]
[{"v":8,"d":"8 "},null,"PAINTWORK",null,"BILL No.",{"v":19,"d":"19 "},null,{"$f":"H60","v":{"v":7500,"d":"7,500.00"}}]
[null,null,"SUB - TOTAL",{"$nulls":4},{"$f":"SUM(H63:H66)","v":{"v":42999.98,"d":"42,999.98"}}]
[]
[null,null,"ADD VAT @ 15%",null,"VAT",{"v":0.15,"d":"15%"},null,{"$f":"H67*15%","v":{"v":6449.997,"d":"6,450.00"}}]
[]
[null,null,"CARRIED TO FORM OF TENDER",{"$nulls":4},{"$f":"SUM(H67:H69)","v":{"v":49449.977,"d":"49,449.98"}}]

{"sheet":"Office renovations (2)","index":2,"n_rows":71,"n_cols":8,"rows_kept":71,"merged":[[1,0,1,7]]}
[]
["A.S. CHETTY - 3RD FLOOR RECEPTION AREA AND FRONT DOORS"]
["ITEM NO",null,"DESCRIPTION",null,"UNIT","QUANTITY","RATE","AMOUNT"]
[]
[null,null,"BILL NO. 1"]
[]
[null,null,"Preliminaries and General"]
[]
[null,null,"The P&G's are priced excluding Vat but are inclusive of all items and expressed as a percentage amount of the Project Value in the appropriate category as indicated below. A percentage as per categories below must be added to the Project Amount to  (9.5%)",null,"Item",1]
[]
[null,null,"Carried to summary"]
[]
[null,null,"BILL NO. 2"]
[]
[null,null,"ALTERATIONS"]
[]
[null,null,"PREAMBLES"]
[]
[null,null,"REMOVAL OF EXISTING WORK"]
[]
[null,null,"Taking up and removing vinyl floor coverings, carpeting, etc"]
[]
[null,null,"Laminated floor covering including preparing screed for new carpeting",null,"m²",{"v":25,"d":"25 "}]
[]
[null,null,"Taking up and removing vinyl floor coverings, carpeting, etc"]
[]
[null,null,"Carpet tile floor covering including preparing screed for new carpeting",null,"m²",{"v":45,"d":"45 "}]
[]
[null,null,"Carried to summary"]
[null,null,"BILL NO. 16"]
[]
[null,null,"TILING"]
[]
[]
[null,null,"FLOOR TILING"]
[]
[null,null,"Allow the prime cost amount of R250.00/m2 for ceramic floor tiles \"TAL\"or other equal Architect approved with a m.o.h.s. of at least 7 on screed with a minimum 3 mm joints using quick setting high strength gray powder adhesive. Surfaces to be tiled are to be primed before tiling using a cement slurry mixedusing liquid latex:"]
[]
[null,null,"On floors",null,"m²",{"v":70,"d":"70 "}]
[]
[null,null,"Carried to summary"]
[]
[]
[]
[null,null,"BILL NO. 19"]
[]
[null,null,"PAINTWORK"]
[]
[null,null,"PAINTWORK TO PREVIOUSLY PAINTED WORK"]
[]
[null,null,"WALLS"]
[]
[null,null,"Thoroughly clean down and remove all grease, dirt and blemishes of all kinds, blisters, scaling, surface cracks and similar defects and leave the surfaces in a thoroughly clean, smooth and stable condition, ready for painting. Cracks, crevices, nail holes, etc shall be stopped with hard stopping. Old stoppings which have become loose shall be removed and the holes restopped.The final state of preparatory work shall be that which shall in all cases produce in the finished painted surface a condition similar to new work"]
[]
[null,null,"Clean down and prepare existing surfaces and apply:"]
[]
[null,null,"Two coats PVA acrylic emulsion paint internally to emulsion painted plastered walls",null,"m²",{"v":100,"d":"100 "}]
[]
[]
[null,null,"Carried to summary"]
[]
[null,null,"SUMMARY OF SCHEDULES"]
[{"v":1,"d":"1 "},null,"PRELIMINARY AND GENERAL",null,"BILL No.",{"v":1,"d":"1 "}]
[{"v":2,"d":"2 "},null,"ALTERATIONS",null,"BILL No.",{"v":2,"d":"2 "}]
[{"v":5,"d":"5 "},null,"TILING",null,"BILL No.",{"v":16,"d":"16 "}]
[{"v":8,"d":"8 "},null,"PAINTWORK",null,"BILL No.",{"v":19,"d":"19 "}]
[null,null,"SUB - TOTAL"]
[]
[null,null,"ADD VAT @ 15%",null,"VAT",{"v":0.15,"d":"15%"}]
[]
[null,null,"CARRIED TO FORM OF TENDER"]

{"sheet":"Measurements","index":3,"n_rows":90,"n_cols":4,"rows_kept":90,"hidden":true,"merged":[[0,0,0,5],[2,0,2,2],[8,0,8,2],[14,0,14,2],[22,0,22,2],[27,0,27,2],[35,0,35,2],[43,0,43,2],[47,0,47,2],[53,0,53,2],[57,0,57,2],[63,0,63,2],[71,0,71,2],[76,0,76,2],[80,0,80,2],[84,0,84,2],[88,0,88,2]]}
["Measuring List for painting to walls and Ceilings for Oribi Airport"]
[]
["Lecture Room"]
["Length","Height","Total"]
[14.616,2.874,{"$f":"A5*B5","v":42.006384},"painting to walls"]
[3.969,5.05,{"$f":"A6*B6","v":20.04345},"Painting to Ceiling"]
[]
[]
["Filing Room"]
[17.28,2.67,{"$f":"A10*B10-1.64","v":44.4976},"Painting to walls"]
[5.073,3.567,{"$f":"A11*B11-1.64","v":16.455391},"Painting to Ceiling"]
["Replace Lockset",null,1]
[]
[]
["Gym"]
[25,2.683,{"$f":"A16*B16-3.28","v":63.795},"Painting to walls"]
[11,2.683,{"$f":"A17*B17-4.92","v":24.593},"Painting to walls"]
[8.074,2.683,{"$f":"A18*B18-4.92","v":16.742542},"Painting to walls"]
[null,null,"11m","Replace skirting"]
[null,null,1,"Service alluminium door"]
[null,null,0.36,"Replace tiling"]
[]
["Staircase Area"]
[9.266,4.459,{"$f":"A24*B24","v":41.317094},"Painting to walls"]
[3.993,4,{"$f":"A25*B25","v":15.972},"Painting to steel Balustrades"]
[]
[]
["External work"]
[1.447,0.5,{"$f":"A29*B29","v":0.7235},"Repair external Brick Pier"]
[null,null,"1m2","Repair paving to match existing"]
[33,0.5,{"$f":"A31*B31","v":16.5},"Painting to Balcony beam"]
[{"$nulls":3},"Replace gutter"]
[{"$nulls":3},"Replace downpipe"]
[]
[]
["Departure Room"]
[11,5,{"$f":"A37*B37","v":55},"replace existing ceiling panels"]
[null,null,1,"Service Alluminium door (Dorma)"]
["silicone to leaks",null,2,"Male Toilets"]
[null,null,1,"Install new door closer"]
[12,10.42,{"$f":"A41*B41","v":125.04},"Roofing"]
[]
[]
["Central screening Point"]
["Fix Trellidor"]
[]
[]
["Hold Baggage Screening"]
[25.4,2.837,{"$f":"A49*B49","v":72.0598},"Painting to walls"]
[5.4,8,{"$f":"A50*B50","v":43.2},"replace existing ceiling panels and set aside for re-use"]
["patching to Partition",null,"0.5m2"]
[]
[]
["Fire truck parking bay"]
["Service Alluminium double Door",null,1]
[]
[]
["General workers rest room"]
[13.77,2.686,{"$f":"A59*B59","v":36.98622},"Painting to walls"]
[4.08,4.795,{"$f":"A60*B60","v":19.5636},"Painting to Ceiling"]
["service alluminium door",null,1]
[]
[]
["Gate 2 Security Block"]
[4.484,2.674,{"$f":"A65*B65","v":11.990216},"Painting to walls"]
[null,null,5,"Painting to doors"]
[7.982,0.5,{"$f":"A67*B67","v":3.991},"Painting to walls bathroom"]
[2.844,1.147,{"$f":"A68*B68","v":3.262068},"Painting to Ceiling"]
["Replace Shower rose",null,1]
[]
[]
["Female Public Toiles"]
["Fix tap leaks",null,2]
["Service flush master",null,1]
[]
[]
["Permit Office"]
["Build up opening to form counter and install shelving"]
[]
[]
["Managers Office"]
[null,null,1,"Install timber sliding door"]
[{"$nulls":3},"Replace Capert strip to match existing"]
[]
["Air Traffic Control Room"]
[{"$nulls":3},"Replace roof sheets"]
[]
[]
["Arrival Hall"]
["service alluminium door and Handle",null,1]